[Event "Nové Hrady - Rapid A"]
[Site "Nové Hrady, Czech Republic"]
[Date "2023.08.12"]
[Round "1.1"]
[White "Martinkovič, Adam"]
[Black "Půlpán, Jakub"]
[Result "0-1"]
[TimeControl "2x20min+5s"]
[WhiteFideId "23728019"]
[BlackFideId "302759"]
[WhiteElo "1808"]
[BlackElo "2515"]

1. c4 {[%clk 00:20:07]} {[%emt 00:00:02]} e6 {[%clk 00:19:56]} {[%emt
00:00:14]} 2. Nf3 {[%clk 00:19:53]} {[%emt 00:00:18]} Nf6 {[%clk 00:19:58]}
{[%emt 00:00:05]} 3. d4 {[%clk 00:19:39]} {[%emt 00:00:19]} b6 {[%clk
00:19:54]} {[%emt 00:00:09]} 4. Nc3 {[%clk 00:19:26]} {[%emt 00:00:18]} Bb7
{[%clk 00:19:54]} {[%emt 00:00:05]} 5. Bg5 {[%clk 00:19:18]} {[%emt 00:00:12]}
Bb4 {[%clk 00:19:51]} {[%emt 00:00:09]} 6. a3 {[%clk 00:19:00]} {[%emt
00:00:22]} Bxc3+ {[%clk 00:19:54]} {[%emt 00:00:03]} 7. bxc3 {[%clk 00:19:04]}
{[%emt 00:00:02]} h6 {[%clk 00:19:57]} 8. Bxf6 {[%clk 00:18:22]} {[%emt
00:00:47]} Qxf6 {[%clk 00:19:59]} {[%emt 00:00:03]} 9. e3 {[%clk 00:18:00]}
{[%emt 00:00:26]} d6 {[%clk 00:19:59]} {[%emt 00:00:05]} 10. Be2 {[%clk
00:17:55]} {[%emt 00:00:10]} Nd7 {[%clk 00:20:00]} {[%emt 00:00:06]} 11. Qb3
{[%clk 00:17:00]} {[%emt 00:00:59]} e5 {[%clk 00:19:45]} {[%emt 00:00:20]} 12.
a4 {[%clk 00:15:22]} {[%emt 00:01:43]} a5 {[%clk 00:19:42]} {[%emt 00:00:09]}
13. Rd1 {[%clk 00:14:31]} {[%emt 00:00:55]} O-O {[%clk 00:19:36]} {[%emt
00:00:11]} 14. O-O {[%clk 00:14:12]} {[%emt 00:00:23]} Rfe8 {[%clk 00:19:32]}
{[%emt 00:00:09]} 15. Qc2 {[%clk 00:12:53]} {[%emt 00:01:24]} e4 {[%clk
00:19:18]} {[%emt 00:00:20]} 16. Nd2 {[%clk 00:12:48]} {[%emt 00:00:09]} Qg5
{[%clk 00:19:12]} {[%emt 00:00:12]} 17. Rb1 {[%clk 00:12:16]} {[%emt 00:00:36]}
f5 {[%clk 00:19:02]} {[%emt 00:00:16]} 18. g3 {[%clk 00:10:56]} {[%emt
00:01:25]} Qf6 {[%clk 00:18:42]} {[%emt 00:00:25]} 19. Rfd1 {[%clk 00:10:36]}
{[%emt 00:00:24]} g5 {[%clk 00:18:36]} {[%emt 00:00:12]} 20. Qb3 {[%clk
00:10:16]} {[%emt 00:00:25]} Kh8 {[%clk 00:18:32]} {[%emt 00:00:09]} 21. Bf1
{[%clk 00:09:43]} {[%emt 00:00:38]} Re7 {[%clk 00:18:16]} {[%emt 00:00:21]} 22.
Bg2 {[%clk 00:09:11]} {[%emt 00:00:36]} Rg8 {[%clk 00:17:57]} {[%emt 00:00:25]}
23. Re1 {[%clk 00:08:58]} {[%emt 00:00:18]} h5 {[%clk 00:17:52]} {[%emt
00:00:10]} 24. Qb5 {[%clk 00:08:11]} {[%emt 00:00:51]} Rh7 {[%clk 00:17:05]}
{[%emt 00:00:52]} 25. Qb2 {[%clk 00:07:13]} {[%emt 00:01:03]} h4 {[%clk
00:15:38]} {[%emt 00:01:33]} 26. Nb3 {[%clk 00:07:02]} {[%emt 00:00:16]} Ba6
{[%clk 00:14:22]} {[%emt 00:01:21]} 27. c5 {[%emt 00:01:49]} dxc5 {[%clk
00:11:10]} {[%emt 00:02:20]} 28. dxc5 {[%emt 00:00:09]} Bd3 {[%clk 00:11:01]}
{[%emt 00:00:08]} 29. Rbd1 {[%clk 00:05:57]} {[%emt 00:00:25]} Ne5 {[%emt
00:00:32]} 30. cxb6 {[%clk 00:05:27]} {[%emt 00:00:05]} cxb6 {[%emt 00:00:44]}
31. Nc1 {[%clk 00:04:58]} {[%emt 00:00:15]} hxg3 {[%clk 00:10:22]} {[%emt
00:00:27]} 32. fxg3 {[%clk 00:04:43]} {[%emt 00:00:20]} f4 {[%clk 00:10:14]}
{[%emt 00:00:13]} 33. exf4 {[%clk 00:03:32]} {[%emt 00:01:16]} gxf4 {[%clk
00:10:16]} {[%emt 00:00:03]} 34. Qf2 {[%emt 00:00:44]} e3 {[%emt 00:00:39]} 35.
Qxf4 {[%clk 00:01:12]} {[%emt 00:01:55]} Qxf4 {[%clk 00:09:35]} {[%emt
00:00:01]} 36. gxf4 {[%clk 00:01:16]} {[%emt 00:00:03]} Nf3+ {[%clk 00:09:39]}
37. Kh1 {[%clk 00:01:19]} {[%emt 00:00:02]} Rxh2# {[%clk 00:09:33]} 0-1

[Event "Nové Hrady - Rapid A"]
[Site "Nové Hrady, Czech Republic"]
[Date "2023.08.12"]
[Round "1.2"]
[White "Babula, Milan"]
[Black "Garabik, Marek"]
[Result "1-0"]
[TimeControl "2x20min+5s"]
[WhiteFideId "300632"]
[BlackFideId "23717742"]
[WhiteElo "2212"]
[BlackElo "1767"]

1. e4 {[%clk 00:20:08]} e6 {[%clk 00:20:03]} {[%emt 00:00:08]} 2. d4 {[%clk
00:20:10]} {[%emt 00:00:03]} d5 {[%clk 00:20:06]} {[%emt 00:00:01]} 3. Nc3
{[%clk 00:20:12]} {[%emt 00:00:03]} Bb4 {[%clk 00:19:50]} {[%emt 00:00:22]} 4.
Nge2 {[%emt 00:01:22]} dxe4 {[%clk 00:18:31]} {[%emt 00:00:11]} 5. a3 {[%clk
00:20:12]} Be7 {[%clk 00:17:24]} {[%emt 00:01:13]} 6. Nxe4 {[%clk 00:20:14]}
{[%emt 00:00:04]} Nd7 {[%clk 00:17:26]} {[%emt 00:00:02]} 7. g3 {[%clk
00:18:32]} {[%emt 00:01:47]} b6 {[%clk 00:17:26]} {[%emt 00:00:05]} 8. Bg2
{[%clk 00:18:29]} {[%emt 00:00:07]} Bb7 {[%clk 00:17:30]} 9. O-O {[%clk
00:18:09]} {[%emt 00:00:28]} Rb8 {[%clk 00:17:16]} {[%emt 00:00:18]} 10. Bf4
{[%clk 00:17:27]} {[%emt 00:00:46]} Ngf6 {[%clk 00:17:17]} {[%emt 00:00:06]} 11.
N2c3 {[%clk 00:17:07]} {[%emt 00:00:25]} O-O {[%clk 00:16:51]} {[%emt
00:00:30]} 12. Qd3 {[%clk 00:16:37]} {[%emt 00:00:35]} c5 {[%clk 00:16:37]}
{[%emt 00:00:16]} 13. Bxb8 {[%clk 00:16:35]} {[%emt 00:00:10]} Qxb8 {[%clk
00:16:27]} {[%emt 00:00:15]} 14. dxc5 {[%clk 00:16:11]} {[%emt 00:00:29]} Nxc5
{[%clk 00:16:11]} {[%emt 00:00:20]} 15. Nxc5 {[%clk 00:16:12]} {[%emt
00:00:05]} Bxg2 {[%clk 00:16:04]} {[%emt 00:00:12]} 16. Kxg2 {[%clk 00:16:11]}
{[%emt 00:00:06]} Bxc5 {[%clk 00:16:06]} {[%emt 00:00:03]} 17. Rad1 {[%clk
00:16:08]} {[%emt 00:00:09]} Qc7 {[%clk 00:15:38]} {[%emt 00:00:32]} 18. Qf3
{[%clk 00:15:43]} {[%emt 00:00:29]} Re8 {[%clk 00:15:06]} {[%emt 00:00:38]} 19.
Rd2 {[%clk 00:15:33]} {[%emt 00:00:15]} e5 {[%clk 00:15:04]} {[%emt 00:00:07]}
20. Nd5 {[%clk 00:15:26]} {[%emt 00:00:11]} Nxd5 {[%clk 00:14:56]} {[%emt
00:00:13]} 21. Qxd5 {[%emt 00:00:20]} Kf8 {[%clk 00:14:39]} {[%emt 00:00:04]}
22. Rfd1 {[%clk 00:15:12]} {[%emt 00:00:22]} a5 {[%clk 00:14:33]} {[%emt
00:00:12]} 23. Qd7 {[%clk 00:14:54]} {[%emt 00:00:23]} Qxd7 {[%clk 00:14:32]}
{[%emt 00:00:06]} 24. Rxd7 {[%clk 00:14:57]} Re7 {[%clk 00:14:36]} {[%emt
00:00:03]} 25. R1d5 {[%clk 00:14:12]} {[%emt 00:00:50]} Rxd7 {[%clk 00:14:15]}
{[%emt 00:00:25]} 26. Rxd7 {[%clk 00:14:15]} {[%emt 00:00:03]} Ke8 {[%clk
00:14:19]} 27. Rb7 {[%clk 00:14:18]} {[%emt 00:00:03]} g6 {[%clk 00:14:21]}
{[%emt 00:00:03]} 28. g4 {[%clk 00:14:12]} {[%emt 00:00:11]} h6 {[%clk
00:14:23]} {[%emt 00:00:04]} 29. f3 {[%clk 00:14:06]} {[%emt 00:00:11]} Kf8
{[%clk 00:14:26]} 30. c3 {[%clk 00:13:53]} {[%emt 00:00:18]} Kg7 {[%clk
00:14:26]} {[%emt 00:00:05]} 31. b4 {[%clk 00:13:49]} {[%emt 00:00:09]} axb4
{[%clk 00:14:29]} {[%emt 00:00:02]} 32. axb4 {[%clk 00:13:53]} Be3 {[%clk
00:14:32]} {[%emt 00:00:03]} 33. c4 {[%clk 00:13:54]} {[%emt 00:00:03]} Kf6
{[%clk 00:14:36]} {[%emt 00:00:02]} 34. h4 {[%clk 00:13:49]} {[%emt 00:00:10]}
Ke6 {[%clk 00:14:40]} 35. Rc7 {[%clk 00:13:35]} {[%emt 00:00:20]} f5 {[%clk
00:14:23]} {[%emt 00:00:22]} 36. Rc6+ {[%clk 00:13:36]} {[%emt 00:00:05]} Kf7
{[%clk 00:14:21]} {[%emt 00:00:06]} 37. h5 {[%clk 00:13:25]} {[%emt 00:00:16]}
gxh5 {[%clk 00:14:22]} {[%emt 00:00:04]} 38. gxf5 {[%clk 00:13:27]} {[%emt
00:00:02]} Bd4 {[%clk 00:14:16]} {[%emt 00:00:12]} 39. Rxh6 {[%clk 00:13:26]}
{[%emt 00:00:06]} 1-0

[Event "Nové Hrady - Rapid A"]
[Site "Nové Hrady, Czech Republic"]
[Date "2023.08.12"]
[Round "1.3"]
[White "Drda, Štěpán"]
[Black "Hák, David"]
[Result "0-1"]
[TimeControl "2x20min+5s"]
[WhiteFideId "23731567"]
[BlackFideId "377007"]
[WhiteElo "1582"]
[BlackElo "2123"]

1. c4 {[%clk 00:20:05]} Nf6 {[%clk 00:20:05]} {[%emt 00:00:02]} 2. Nc3 {[%clk
00:20:05]} {[%emt 00:00:02]} g6 {[%clk 00:20:05]} {[%emt 00:00:03]} 3. g3
{[%clk 00:20:05]} Bg7 {[%clk 00:19:50]} {[%emt 00:00:23]} 4. Bg2 {[%clk
00:20:05]} {[%emt 00:00:02]} O-O {[%clk 00:19:50]} {[%emt 00:00:03]} 5. Nf3
{[%clk 00:20:05]} {[%emt 00:00:02]} c6 {[%clk 00:19:36]} {[%emt 00:00:20]} 6.
O-O {[%clk 00:20:05]} {[%emt 00:00:05]} d5 {[%clk 00:19:36]} 7. cxd5 {[%clk
00:20:01]} {[%emt 00:00:10]} cxd5 {[%clk 00:19:36]} {[%emt 00:00:05]} 8. d4
{[%clk 00:19:48]} {[%emt 00:00:19]} Nc6 {[%clk 00:19:36]} {[%emt 00:00:02]} 9.
e3 {[%clk 00:19:22]} {[%emt 00:00:31]} Bf5 {[%clk 00:19:32]} {[%emt 00:00:09]}
10. Bd2 {[%clk 00:18:57]} {[%emt 00:00:30]} Rc8 {[%clk 00:19:26]} {[%emt
00:00:11]} 11. Qa4 {[%clk 00:17:35]} {[%emt 00:01:27]} Qb6 {[%clk 00:18:06]}
{[%emt 00:01:25]} 12. b3 {[%clk 00:16:15]} {[%emt 00:01:24]} Bd7 {[%clk
00:16:04]} {[%emt 00:02:08]} 13. Qa3 {[%clk 00:15:11]} {[%emt 00:01:10]} e6
{[%clk 00:14:13]} {[%emt 00:01:56]} 14. Na4 {[%clk 00:13:15]} {[%emt 00:02:00]}
Qd8 {[%clk 00:13:05]} {[%emt 00:01:13]} 15. Rfc1 {[%clk 00:12:44]} {[%emt
00:00:36]} Ne4 {[%clk 00:12:34]} {[%emt 00:00:36]} 16. Nc5 {[%clk 00:11:43]}
{[%emt 00:01:05]} Qe7 {[%clk 00:12:28]} {[%emt 00:00:12]} 17. Qb2 {[%clk
00:11:08]} {[%emt 00:00:40]} Nxc5 {[%clk 00:12:28]} {[%emt 00:00:04]} 18. Rxc5
{[%clk 00:11:08]} {[%emt 00:00:03]} Qxc5 {[%clk 00:12:28]} 0-1

[Event "Nové Hrady - Rapid A"]
[Site "Nové Hrady, Czech Republic"]
[Date "2023.08.12"]
[Round "1.4"]
[White "Pochinkov, Andrey"]
[Black "Šlechta, Adam"]
[Result "1-0"]
[TimeControl "2x20min+5s"]
[WhiteFideId "4146387"]
[BlackFideId "23734450"]
[WhiteElo "2052"]
[BlackElo "1409"]

1. Nf3 {[%clk 00:20:06]} {[%emt 00:00:03]} g6 {[%clk 00:20:00]} {[%emt
00:00:11]} 2. d4 {[%clk 00:20:08]} {[%emt 00:00:02]} Bg7 {[%clk 00:20:01]}
{[%emt 00:00:06]} 3. e4 {[%clk 00:20:05]} {[%emt 00:00:07]} d6 {[%clk
00:19:34]} {[%emt 00:00:31]} 4. Nc3 {[%clk 00:20:00]} {[%emt 00:00:10]} Nf6
{[%clk 00:19:17]} {[%emt 00:00:23]} 5. Be2 {[%clk 00:19:51]} {[%emt 00:00:13]}
O-O {[%clk 00:18:59]} {[%emt 00:00:23]} 6. Bg5 {[%clk 00:19:38]} {[%emt
00:00:18]} c5 {[%clk 00:18:00]} {[%emt 00:01:05]} 7. Qd2 {[%clk 00:19:18]}
{[%emt 00:00:25]} cxd4 {[%clk 00:17:29]} {[%emt 00:00:37]} 8. Nxd4 {[%clk
00:19:20]} {[%emt 00:00:02]} Nc6 {[%clk 00:17:25]} {[%emt 00:00:10]} 9. Nf3
{[%clk 00:18:41]} {[%emt 00:00:42]} Qb6 {[%clk 00:16:41]} {[%emt 00:00:49]} 10.
Rb1 {[%clk 00:15:13]} {[%emt 00:03:33]} Ng4 {[%clk 00:12:34]} {[%emt 00:04:13]}
11. O-O {[%clk 00:14:52]} {[%emt 00:00:25]} Nge5 {[%clk 00:11:16]} {[%emt
00:01:24]} 12. Nxe5 {[%clk 00:13:42]} {[%emt 00:01:13]} Bxe5 {[%clk 00:11:05]}
{[%emt 00:00:17]} 13. Nd5 {[%clk 00:13:40]} {[%emt 00:00:08]} Qd8 {[%clk
00:10:29]} {[%emt 00:00:41]} 14. Bb5 {[%clk 00:12:23]} {[%emt 00:01:22]} f6
{[%clk 00:08:59]} {[%emt 00:01:36]} 15. Bh6 {[%clk 00:12:11]} {[%emt 00:00:16]}
Rf7 {[%clk 00:07:41]} {[%emt 00:01:23]} 16. c3 {[%clk 00:11:52]} {[%emt
00:00:23]} f5 {[%clk 00:06:33]} {[%emt 00:01:14]} 17. exf5 {[%clk 00:08:21]}
{[%emt 00:03:36]} Bxf5 {[%clk 00:05:48]} {[%emt 00:00:50]} 18. Rbe1 {[%clk
00:08:05]} {[%emt 00:00:19]} a6 {[%clk 00:04:39]} {[%emt 00:01:16]} 19. Bc4
{[%clk 00:07:36]} {[%emt 00:00:33]} b5 {[%clk 00:03:14]} {[%emt 00:01:31]} 20.
Bb3 {[%clk 00:07:37]} {[%emt 00:00:04]} Na5 {[%clk 00:03:00]} {[%emt 00:00:20]}
21. f4 {[%clk 00:06:44]} {[%emt 00:00:56]} Nxb3 {[%clk 00:02:42]} {[%emt
00:00:23]} 22. axb3 {[%clk 00:06:47]} {[%emt 00:00:02]} Bf6 {[%clk 00:02:28]}
{[%emt 00:00:20]} 23. Nxf6+ {[%emt 00:00:36]} Rxf6 {[%clk 00:02:00]} {[%emt
00:00:23]} 24. Rxe7 {[%clk 00:06:07]} {[%emt 00:00:23]} Qxe7 {[%clk 00:01:35]}
{[%emt 00:00:31]} 25. Qd5+ {[%clk 00:06:10]} {[%emt 00:00:01]} Re6 {[%clk
00:01:04]} {[%emt 00:00:37]} 26. Qxa8+ {[%clk 00:06:08]} {[%emt 00:00:06]} Qe8
{[%clk 00:01:05]} {[%emt 00:00:05]} 27. Qb7 {[%clk 00:04:58]} {[%emt 00:01:15]}
Qe7 {[%clk 00:00:12]} {[%emt 00:00:59]} 28. Qd5 {[%clk 00:04:35]} {[%emt
00:00:26]} Be4 {[%clk 00:00:08]} {[%emt 00:00:10]} 29. Qd4 {[%clk 00:04:37]}
{[%emt 00:00:02]} Qf6 {[%clk 00:00:09]} {[%emt 00:00:05]} 30. Qxf6 {[%clk
00:04:03]} {[%emt 00:00:39]} Rxf6 {[%clk 00:00:13]} 31. Re1 {[%clk 00:03:53]}
{[%emt 00:00:14]} Re6 {[%clk 00:00:07]} {[%emt 00:00:13]} 32. Kf2 {[%clk
00:03:51]} {[%emt 00:00:06]} Bf5 {[%clk 00:00:12]} 33. Ra1 {[%clk 00:03:48]}
{[%emt 00:00:09]} d5 {[%clk 00:00:16]} {[%emt 00:00:01]} 34. Bg5 {[%clk
00:03:43]} {[%emt 00:00:09]} Kg7 {[%clk 00:00:18]} {[%emt 00:00:04]} 35. h3
{[%clk 00:03:45]} {[%emt 00:00:02]} h6 {[%clk 00:00:22]} 36. Bd8 {[%clk
00:03:47]} {[%emt 00:00:05]} Bc2 {[%clk 00:00:21]} {[%emt 00:00:07]} 37. b4
{[%clk 00:03:48]} {[%emt 00:00:04]} Bd3 {[%clk 00:00:24]} {[%emt 00:00:01]} 38.
Bc7 {[%clk 00:03:49]} {[%emt 00:00:03]} Re2+ {[%clk 00:00:27]} {[%emt
00:00:03]} 39. Kf3 {[%clk 00:03:51]} {[%emt 00:00:03]} Rxb2 {[%clk 00:00:30]}
{[%emt 00:00:02]} 40. Be5+ {[%emt 00:00:02]} Kf7 41. c4 {[%clk 00:03:54]}
{[%emt 00:00:04]} Rb3 {[%clk 00:00:33]} {[%emt 00:00:07]} 42. cxd5 {[%clk
00:03:50]} {[%emt 00:00:09]} Bc4+ {[%clk 00:00:32]} {[%emt 00:00:06]} 43. Ke4
{[%clk 00:03:52]} {[%emt 00:00:03]} Bd3+ {[%clk 00:00:34]} {[%emt 00:00:03]} 44.
Kd4 {[%clk 00:03:54]} {[%emt 00:00:02]} Bc4 {[%clk 00:00:38]} {[%emt 00:00:02]}
45. d6 {[%clk 00:03:50]} {[%emt 00:00:09]} Ke6 {[%clk 00:00:37]} {[%emt
00:00:06]} 46. Rxa6 {[%clk 00:03:52]} {[%emt 00:00:02]} Rd3+ {[%clk 00:00:39]}
{[%emt 00:00:03]} 47. Kc5 {[%clk 00:03:55]} {[%emt 00:00:02]} Rd5+ {[%clk
00:00:42]} {[%emt 00:00:03]} 48. Kc6 {[%clk 00:03:57]} {[%emt 00:00:02]} g5
{[%clk 00:00:44]} {[%emt 00:00:03]} 49. g3 {[%clk 00:03:59]} {[%emt 00:00:03]}
gxf4 {[%clk 00:00:45]} {[%emt 00:00:05]} 50. Bxf4 {[%clk 00:04:01]} {[%emt
00:00:03]} h5 {[%clk 00:00:48]} {[%emt 00:00:02]} 51. Kc7 {[%clk 00:04:01]}
{[%emt 00:00:05]} Kf7 {[%clk 00:00:49]} {[%emt 00:00:04]} 52. d7 {[%clk
00:04:03]} {[%emt 00:00:03]} 1-0

[Event "Nové Hrady - Rapid A"]
[Site "Nové Hrady, Czech Republic"]
[Date "2023.08.12"]
[Round "1.5"]
[White "Kukla, Josef"]
[Black "Urban, Zdeněk"]
[Result "0-1"]
[TimeControl "2x20min+5s"]
[WhiteFideId "23725869"]
[BlackFideId "312754"]
[WhiteElo "1364"]
[BlackElo "2048"]

1. d4 {[%clk 00:20:07]} {[%emt 00:00:03]} Nf6 {[%clk 00:20:02]} {[%emt
00:00:08]} 2. Bf4 {[%clk 00:19:55]} {[%emt 00:00:17]} d6 {[%clk 00:19:54]}
{[%emt 00:00:12]} 3. Nf3 {[%clk 00:19:40]} {[%emt 00:00:21]} Nbd7 {[%clk
00:19:56]} {[%emt 00:00:03]} 4. e3 {[%clk 00:19:29]} {[%emt 00:00:17]} g6
{[%clk 00:19:57]} {[%emt 00:00:03]} 5. Nbd2 {[%clk 00:19:24]} {[%emt 00:00:10]}
Bg7 {[%clk 00:19:50]} {[%emt 00:00:12]} 6. Bd3 {[%clk 00:19:13]} {[%emt
00:00:17]} O-O {[%clk 00:19:45]} {[%emt 00:00:09]} 7. O-O {[%clk 00:19:02]}
{[%emt 00:00:16]} Re8 {[%clk 00:19:41]} {[%emt 00:00:08]} 8. Bg5 {[%clk
00:17:51]} {[%emt 00:01:17]} e5 {[%clk 00:19:11]} {[%emt 00:00:35]} 9. c3
{[%clk 00:16:50]} {[%emt 00:01:06]} h6 {[%clk 00:19:08]} {[%emt 00:00:08]} 10.
Bxf6 {[%clk 00:16:36]} {[%emt 00:00:20]} Nxf6 {[%clk 00:18:32]} {[%emt
00:00:40]} 11. e4 {[%clk 00:15:20]} {[%emt 00:01:21]} exd4 {[%clk 00:17:47]}
{[%emt 00:00:49]} 12. Nxd4 {[%clk 00:14:56]} {[%emt 00:00:30]} c5 {[%clk
00:16:14]} {[%emt 00:01:37]} 13. N4f3 {[%clk 00:14:44]} {[%emt 00:00:19]} Be6
{[%clk 00:16:12]} {[%emt 00:00:06]} 14. Re1 {[%clk 00:14:11]} {[%emt 00:00:38]}
Qc7 {[%clk 00:15:19]} {[%emt 00:00:58]} 15. Nf1 {[%clk 00:12:10]} {[%emt
00:02:06]} d5 {[%clk 00:13:25]} {[%emt 00:01:58]} 16. exd5 {[%clk 00:11:08]}
{[%emt 00:01:08]} Nxd5 {[%clk 00:13:23]} {[%emt 00:00:06]} 17. Qc2 {[%emt
00:02:55]} Nf4 {[%clk 00:09:16]} {[%emt 00:02:35]} 18. Bb5 {[%clk 00:08:47]}
{[%emt 00:01:13]} Red8 {[%clk 00:08:52]} {[%emt 00:00:29]} 19. a3 {[%clk
00:06:20]} {[%emt 00:02:33]} a6 {[%clk 00:08:45]} {[%emt 00:00:12]} 20. Be2
{[%clk 00:06:02]} {[%emt 00:00:23]} Bf5 {[%clk 00:06:50]} {[%emt 00:01:59]} 21.
Qb3 {[%clk 00:05:19]} {[%emt 00:00:48]} Re8 {[%clk 00:06:45]} {[%emt 00:00:09]}
22. Ne3 {[%clk 00:04:39]} {[%emt 00:00:47]} b5 {[%clk 00:06:31]} {[%emt
00:00:19]} 23. g3 {[%clk 00:02:53]} {[%emt 00:01:51]} Nxe2+ {[%clk 00:06:11]}
{[%emt 00:00:24]} 24. Rxe2 {[%clk 00:02:50]} {[%emt 00:00:08]} Bg4 {[%clk
00:04:51]} {[%emt 00:01:24]} 25. Kg2 {[%clk 00:00:38]} {[%emt 00:02:20]} c4
{[%clk 00:04:47]} {[%emt 00:00:08]} 26. Nd5 {[%emt 00:00:41]} Qc6 {[%emt
00:00:37]} 27. Qd1 Rxe2 28. Qxe2 {[%emt 00:00:02]} Qxd5 {[%clk 00:04:10]}
{[%emt 00:00:02]} 0-1

[Event "Nové Hrady - Rapid A"]
[Site "Nové Hrady, Czech Republic"]
[Date "2023.08.12"]
[Round "1.6"]
[White "Prinz, Hubert"]
[Black "Slabý, Martin"]
[Result "1-0"]
[TimeControl "2x20min+5s"]
[WhiteFideId "1639447"]
[BlackFideId "23713593"]
[WhiteElo "2038"]
[BlackElo "1309"]

1. d4 {[%clk 00:20:07]} {[%emt 00:00:03]} Nf6 {[%clk 00:20:06]} {[%emt
00:00:05]} 2. Nf3 {[%clk 00:20:09]} {[%emt 00:00:02]} e6 {[%clk 00:19:51]}
{[%emt 00:00:21]} 3. e3 {[%clk 00:20:13]} {[%emt 00:00:01]} a6 {[%clk
00:19:35]} {[%emt 00:00:20]} 4. Bd3 {[%clk 00:20:16]} {[%emt 00:00:02]} b5
{[%clk 00:19:10]} {[%emt 00:00:31]} 5. Nbd2 {[%clk 00:20:13]} {[%emt 00:00:08]}
Bb7 {[%clk 00:19:02]} {[%emt 00:00:13]} 6. e4 {[%clk 00:20:03]} {[%emt
00:00:14]} d6 {[%clk 00:18:34]} {[%emt 00:00:34]} 7. O-O {[%clk 00:20:04]}
{[%emt 00:00:04]} Nbd7 {[%clk 00:18:27]} {[%emt 00:00:11]} 8. c3 {[%clk
00:19:36]} {[%emt 00:00:33]} c5 {[%clk 00:18:15]} {[%emt 00:00:18]} 9. Re1
{[%clk 00:19:18]} {[%emt 00:00:22]} cxd4 {[%clk 00:17:06]} {[%emt 00:01:14]} 10.
cxd4 {[%clk 00:19:12]} {[%emt 00:00:11]} Be7 {[%clk 00:16:41]} {[%emt
00:00:31]} 11. e5 {[%clk 00:17:42]} {[%emt 00:01:35]} Bxf3 {[%clk 00:16:23]}
{[%emt 00:00:23]} 12. Nxf3 {[%clk 00:17:40]} {[%emt 00:00:06]} dxe5 {[%clk
00:16:07]} {[%emt 00:00:22]} 13. dxe5 {[%clk 00:17:35]} {[%emt 00:00:10]} Ng4
{[%clk 00:14:18]} {[%emt 00:01:54]} 14. h3 {[%clk 00:17:22]} {[%emt 00:00:17]}
Nc5 {[%clk 00:13:54]} {[%emt 00:00:30]} 15. Bxb5+ {[%clk 00:14:05]} {[%emt
00:03:22]} axb5 {[%clk 00:13:29]} {[%emt 00:00:29]} 16. hxg4 {[%clk 00:14:06]}
{[%emt 00:00:04]} Qxd1 {[%clk 00:13:03]} {[%emt 00:00:31]} 17. Rxd1 {[%clk
00:14:10]} Ne4 {[%clk 00:12:04]} {[%emt 00:01:06]} 18. Re1 {[%clk 00:13:16]}
{[%emt 00:00:58]} f5 {[%clk 00:12:00]} {[%emt 00:00:09]} 19. gxf5 {[%clk
00:12:24]} {[%emt 00:00:57]} exf5 {[%clk 00:11:58]} {[%emt 00:00:07]} 20. Be3
{[%clk 00:09:54]} {[%emt 00:02:35]} Rc8 {[%clk 00:10:28]} {[%emt 00:01:35]} 21.
Nd4 {[%clk 00:09:46]} {[%emt 00:00:14]} Bc5 {[%clk 00:09:18]} {[%emt 00:01:14]}
22. Nxf5 {[%clk 00:09:38]} {[%emt 00:00:12]} Bxe3 {[%clk 00:08:53]} {[%emt
00:00:30]} 23. Rxe3 {[%clk 00:09:17]} {[%emt 00:00:27]} Nd2 {[%clk 00:08:21]}
{[%emt 00:00:38]} 24. Nd6+ {[%clk 00:09:12]} {[%emt 00:00:09]} Ke7 {[%clk
00:07:55]} {[%emt 00:00:32]} 25. Nxc8+ {[%clk 00:09:07]} {[%emt 00:00:10]} Rxc8
{[%clk 00:07:57]} {[%emt 00:00:03]} 26. b3 {[%clk 00:08:23]} {[%emt 00:00:48]}
Rc2 {[%clk 00:07:38]} {[%emt 00:00:24]} 27. a4 {[%clk 00:08:19]} {[%emt
00:00:09]} bxa4 {[%clk 00:07:17]} {[%emt 00:00:26]} 28. bxa4 {[%clk 00:08:23]}
{[%emt 00:00:02]} Nc4 {[%clk 00:07:05]} {[%emt 00:00:17]} 29. Ree1 {[%clk
00:07:57]} {[%emt 00:00:28]} Ke6 {[%clk 00:06:39]} {[%emt 00:00:34]} 30. a5
{[%clk 00:08:00]} {[%emt 00:00:02]} Nxe5 {[%clk 00:06:20]} {[%emt 00:00:23]} 31.
f4 {[%clk 00:08:01]} {[%emt 00:00:04]} Kd5 {[%emt 00:00:17]} 1-0